fUST/lending_fUST_20250502
["ID","MTS","AMOUNT","RATE_DAILY","PERIOD"]
[359557670,1746123047888,-564.642742,0.00025,2]
[359557671,1746123047901,-151.0,0.00025,7]
[359557672,1746123047911,-564.642742,0.00025,2]
[359557673,1746123047920,-151.0,0.00025,7]
[359557674,1746123047931,-213.087188,0.00025,7]
[359557675,1746123047940,-564.642742,0.00025,2]
[359557676,1746123047950,-564.642742,0.00025,2]
[359557677,1746123047960,-564.642742,0.00025,2]
[359557678,1746123047970,-153.30127,0.00025,7]
[359557679,1746123047980,-564.642742,0.00025,2]
[359557680,1746123047990,-564.642742,0.00025,2]
[359557681,1746123048000,-153.30127,0.00025,7]
[359557682,1746123048010,-153.30127,0.00025,7]
[359557683,1746123048020,-153.30127,0.00025,7]
[359557684,1746123048030,-153.30127,0.00025,7]
[359557685,1746123048041,-564.642742,0.00025,2]
[359557686,1746123048051,-153.30127,0.00025,7]
[359557687,1746123048061,-564.642742,0.00025,2]
[359557688,1746123048070,-564.642742,0.00025,2]
[359557689,1746123048080,-564.642742,0.00025,2]
[359557690,1746123048091,-564.642742,0.00025,2]
[359557691,1746123048102,-153.30127,0.00025,7]
[359557692,1746123048112,-564.642742,0.00025,2]
[359557693,1746123048124,-153.30127,0.00025,7]
[359557694,1746123048135,-564.642742,0.00025,2]
[359557695,1746123048146,-153.30127,0.00025,7]
[359557696,1746123048157,-151.0,0.00025,7]
[359557697,1746123048168,-153.30127,0.00025,7]
[359557698,1746123048179,-153.30127,0.00025,7]
[359557699,1746123048189,-151.0,0.00025,7]
[359557700,1746123048200,-153.301272,0.00025,7]
[359557701,1746123048210,-151.0,0.00025,7]
[359557702,1746123048222,-151.0,0.00025,7]
[359557703,1746123048232,-151.0,0.00025,7]
[359557704,1746123048242,-151.0,0.00025,7]
[359557705,1746123048253,-151.0,0.00025,7]
[359557706,1746123048262,-151.0,0.00025,7]
[359557707,1746123048273,-151.0,0.00025,7]
[359557708,1746123048283,-151.0,0.00025,7]
[359557709,1746123048293,-151.0,0.00025,7]
[359557710,1746123048303,-151.0,0.00025,7]
[359557711,1746123048313,-151.0,0.00025,7]
[359557712,1746123048323,-151.0,0.00025,7]
[359557713,1746123048333,-151.0,0.00025,7]
[359557714,1746123048344,-301.399195,0.00025,7]
[359557715,1746123048354,-191.027064,0.00025,7]
[359557716,1746123048364,-1000.0,0.00025,14]
[359557717,1746123048374,-191.027064,0.00025,7]
[359557718,1746123048384,-1000.0,0.00025,14]
[359557719,1746123048395,-191.027064,0.00025,7]
[359557720,1746123048406,-1000.0,0.00025,14]
[359557721,1746123048416,-191.027064,0.00025,7]
[359557722,1746123048426,-1000.0,0.00025,14]
[359557723,1746123048436,-1000.0,0.00025,14]
[359557724,1746123048446,-1000.0,0.00025,14]
[359557725,1746123048456,-1000.0,0.00025,14]
[359557726,1746123048466,-1000.0,0.00025,14]
[359557727,1746123048476,-191.027064,0.00025,7]
[359557728,1746123048486,-1000.0,0.00025,14]
[359557729,1746123048497,-191.027064,0.00025,7]
[359557730,1746123048507,-1000.0,0.00025,14]
[359557731,1746123048518,-191.027064,0.00025,7]
[359557732,1746123048528,-1000.0,0.00025,14]
[359557733,1746123048538,-1000.0,0.00025,14]
[359557734,1746123048547,-1000.0,0.00025,14]
[359557735,1746123048557,-1000.0,0.00025,14]
[359557736,1746123048567,-1000.0,0.00025,14]
[359557737,1746123048577,-191.027071,0.00025,7]
[359557738,1746123048587,-946.644675,0.00025,14]
[359557739,1746123048597,-160.0,0.00025,3]
[359557740,1746123048607,-160.0,0.00025,3]
[359557741,1746123048617,-362.0172928,0.00025023,2]
[359557742,1746123048627,-204.397078,0.00025072,7]
[359557743,1746123048636,-219.760607,0.00025072,7]
[359557744,1746123048648,-219.760607,0.00025072,7]
[359557745,1746123048658,-564.642742,0.00025072,2]
[359557746,1746123048667,-564.642742,0.00025072,2]
[359557747,1746123048677,-1390.46487541,0.00025176,12]
[359557748,1746123048687,-900.0,0.0002526,2]
[359557749,1746123048699,-250.0,0.00025421,2]
[359557750,1746123048709,-500.0,0.00025431,2]
[359557751,1746123048719,-587.0,0.00025453,2]
[359557752,1746123048730,-900.0,0.00025469,3]
[359557753,1746123048741,-151.0,0.00025469,7]
[359557754,1746123048750,-326.993334,0.00025469,7]
[359557755,1746123048761,-231.248459,0.00025469,7]
[359557756,1746123048774,-326.993334,0.00025469,7]
[359557757,1746123048784,-159.99053663,0.000255,2]
[359557758,1746123048794,-466.4257343,0.00025526,2]
[359557759,1746123048805,-1560.76968647,0.00025771,2]
[359557760,1746123048815,-151.0,0.000258,12]
[359557761,1746123048825,-1390.46487541,0.00025831,13]
[359557762,1746123048835,-298.4767271,0.00025863,2]
[359557763,1746123048847,-587.0,0.00025882,2]
[359557764,1746123048857,-260.0,0.00025883,2]
[359557765,1746123048867,-250.0,0.000259,30]
[359557766,1746123048877,-350.0,0.00025968,2]
[359557767,1746123048887,-465.67385479,0.00025985,2]
[359557768,1746123048899,-151.0,0.00026,18]
[359557769,1746123048910,-1349.94,0.00026016,3]
[359557770,1746123048920,-2351.0,0.00026126,2]
[359557771,1746123048930,-151.0,0.00026152,7]
[359557772,1746123048940,-292.688111,0.00026152,7]
[359557773,1746123048950,-173.643399,0.00026152,7]
[359557774,1746123048960,-292.688111,0.00026152,7]
[359557775,1746123048970,-173.643399,0.00026152,7]
[359557776,1746123048981,-151.0,0.00026152,7]
[359557777,1746123048991,-151.0,0.00026152,7]
[359557778,1746123049002,-326.993334,0.00026152,7]
[359557779,1746123049013,-326.993334,0.00026152,7]
[359557780,1746123049023,-219.760607,0.00026152,7]
[359557781,1746123049033,-219.760607,0.00026152,7]
[359557782,1746123049043,-564.642742,0.00026152,2]
[359557783,1746123049053,-564.642742,0.00026152,2]
[359557784,1746123049064,-151.0,0.000262,14]
[359557785,1746123049074,-160.0,0.0002635,3]
[359557786,1746123049085,-292.688111,0.0002635,7]
[359557787,1746123049095,-173.643399,0.0002635,7]
[359557788,1746123049106,-292.688113,0.0002635,7]
[359557789,1746123049117,-173.643395,0.0002635,7]
[359557790,1746123049127,-272.268992,0.0002635,7]
[359557791,1746123049137,-151.0,0.0002635,7]
[359557792,1746123049148,-326.993334,0.0002635,7]
[359557793,1746123049158,-326.993342,0.0002635,7]
[359557794,1746123049168,-219.760607,0.0002635,7]
[359557795,1746123049179,-219.76060304,0.0002635,7]
[359557796,1746123049189,-564.642742,0.0002635,2]
[359557797,1746123049199,-564.642732,0.0002635,2]
[359557798,1746123049210,-151.0,0.000264,17]
[359557799,1746123049219,-248.581676,0.00026402,7]
[359557800,1746123049228,-1390.46487541,0.00026486,15]
[359557801,1746123049238,-450.0,0.00026516,2]
[359557802,1746123049248,-250.0,0.00026547,2]
[359557803,1746123049259,-151.0,0.00026637,2]
[359557804,1746123049270,-207.4,0.00026637,2]
[359557805,1746123049281,-151.0,0.000267,18]
[359557806,1746123049292,-500.0,0.00026769,2]
[359557807,1746123049302,-151.0,0.000269,7]
[359557808,1746123049313,-151.0,0.000269,20]
[359557809,1746123049323,-1200.0,0.00026904,2]
[359557810,1746123049333,-151.0,0.00026935,7]
[359557811,1746123049344,-151.0,0.00026935,7]
[359557812,1746123049354,-160.0,0.00027,3]
[359557813,1746123049365,-313.5174939,0.00027,3]
[359557814,1746123049376,-550.0,0.00027064,2]
[359557815,1746123049386,-1390.46487541,0.00027141,16]
[359557816,1746123049398,-151.0,0.0002719,7]
[359557817,1746123049408,-330.26624829,0.0002737,5]
[359557818,1746123049418,-988.255074,0.00027397,2]
[359557819,1746123049428,-550.156172,0.00027397,120]
[359557820,1746123049438,-1000.0,0.00027452,5]
[359557821,1746123049448,-1000.0,0.00027452,2]
[359557822,1746123049459,-500.0,0.00027452,5]
[359557823,1746123049469,-500.0,0.00027452,5]
[359557824,1746123049480,-1000.0,0.00027452,5]
[359557825,1746123049490,-1000.0,0.00027452,5]
[359557826,1746123049501,-1000.0,0.00027452,5]
[359557827,1746123049510,-1000.0,0.00027452,5]
[359557828,1746123049520,-1000.0,0.00027452,5]
[359557829,1746123049530,-1000.0,0.00027452,5]
[359557830,1746123049542,-1542.5066517,0.000275,2]
[359557831,1746123049552,-160.0,0.0002751,2]
[359557832,1746123049562,-1881.47591277,0.000276,7]
[359557833,1746123049572,-650.0,0.00027612,5]
[359557834,1746123049582,-801.0,0.00027672,2]
[359557835,1746123049592,-1560.76968647,0.0002772,2]
[359557836,1746123049602,-165.534837,0.0002777,7]
[359557837,1746123049612,-500.0,0.00027773,5]
[359557838,1746123049623,-500.0,0.00027773,5]
[359557839,1746123049633,-172.718298,0.00027784,7]
[359557840,1746123049645,-151.0,0.00027784,7]
[359557841,1746123049657,-151.0,0.00027784,7]
[359557842,1746123049668,-151.0,0.00027794,7]
[359557843,1746123049679,-1390.46487541,0.00027797,17]
[359557844,1746123049690,-482336.80585851,0.000278,2]
[359557845,1746123049955,-1379.42499992,0.000278,2]
[359557846,1746123050869,-1538.29499047,0.00021915,2]
[359557847,1746123050883,-1587.23914738,0.00021915,2]
[359557848,1746123050892,-500.0,0.00021915,2]
[359557849,1746123050904,-3125.53413785,0.00021915,2]
[359557850,1746123050914,-3125.53413785,0.00021915,2]
[359557851,1746123050925,-500.0,0.00021915,2]
[359557852,1746123050937,-3125.53413785,0.00021915,2]
[359557853,1746123050947,-500.0,0.00021915,2]
[359557854,1746123050956,-3125.53413785,0.00021915,2]
[359557855,1746123050966,-500.0,0.00021915,2]
[359557856,1746123050975,-571.64862877,0.00021915,2]
[359557857,1746123050986,-3125.53413785,0.00021915,2]
[359557858,1746123050996,-3125.53413785,0.00021915,2]
[359557859,1746123051005,-3125.53413785,0.00021915,2]
[359557860,1746123051015,-3125.53413785,0.00021915,2]
[359557861,1746123051024,-3125.53413785,0.00021915,2]
[359557862,1746123051034,-3125.53413785,0.00021915,2]
[359557863,1746123051043,-3125.53413785,0.00021915,2]
[359557864,1746123051053,-3125.53413785,0.00021915,2]
[359557865,1746123051062,-3125.53413785,0.00021915,2]
[359557866,1746123051072,-3125.53413785,0.00021915,2]
[359557867,1746123051082,-3125.53413785,0.00021915,2]
[359557868,1746123051092,-3125.53413785,0.00021915,2]
[359557869,1746123051101,-3125.53413785,0.00021915,2]
[359557870,1746123051111,-3125.53413785,0.00021915,2]
[359557871,1746123051120,-3125.53413785,0.00021915,2]
[359557872,1746123051130,-3125.53413785,0.00021915,2]
[359557873,1746123051140,-3125.53413785,0.00021915,2]
[359557874,1746123051149,-3125.53413785,0.00021915,2]
[359557875,1746123051159,-3125.53413785,0.00021915,2]
[359557876,1746123051169,-3125.53413785,0.00021915,2]
[359557877,1746123051179,-3125.53413785,0.00021915,2]
[359557878,1746123051189,-3125.53413785,0.00021915,2]
[359557879,1746123051198,-3125.53413785,0.00021915,2]
[359557880,1746123051208,-3125.53413785,0.00021915,2]
[359557881,1746123051218,-3125.53413785,0.00021915,2]
[359557882,1746123051227,-3125.53413785,0.00021915,2]
[359557883,1746123051237,-3125.53413785,0.00021915,2]
[359557884,1746123051247,-3125.53413785,0.00021915,2]
[359557885,1746123051257,-3125.53413785,0.00021915,2]
[359557886,1746123051266,-3125.53413785,0.00021915,2]
[359557887,1746123051276,-3125.53413785,0.00021915,2]
[359557888,1746123051286,-3125.53413785,0.00021915,2]
[359557889,1746123051296,-3125.53413785,0.00021915,2]
[359557890,1746123051306,-421.4777418,0.00024596,7]
[359557891,1746123051316,-421.4777418,0.00025,3]
[359557892,1746123051325,-188893.63210603,0.000278,2]
[359557893,1746123051338,-596.5379497,0.000278,2]
[359557894,1746123051353,-818.08372704,0.000278,2]
[359557895,1746123051364,-2852.47573755,0.000278,2]
[359557896,1746123051855,-2199.99646509,0.000278,2]
[359557897,1746123051868,-990.20353383,0.000278,2]
[359557898,1746123051880,-1940.78210474,0.000278,2]
[359557899,1746123051892,-1350.2552925,0.000278,2]
[359557900,1746123051905,-3142.90449901,0.000278,2]
[359557901,1746123052086,-1001.324505,0.000278,2]
[359557903,1746123299950,151.0,0.00025,30]
[359557906,1746123370010,250.0,0.000241,30]
[359557907,1746123472371,-281.66216429,0.00020906,2]
[359557908,1746123481723,-153.02386508,0.00020906,2]
[359557909,1746123487842,-300.0,0.00020905,2]
[359557910,1746123487867,-41.12846608,0.00020906,2]
[359557911,1746123493792,-279.47057772,0.00020906,2]
[359557912,1746123692700,-822.58402607,0.00020064,2]
[359557913,1746123702492,-177.41597393,0.00020064,2]
[359557914,1746123705198,-309.48977497,0.00020064,2]
[359557916,1746123715103,-250.0,0.00020064,2]
[359557917,1746123720776,-500.0,0.00020064,2]
[359557918,1746123728175,-420.0,0.00020064,2]
[359557919,1746123738336,-164.67236682,0.00020064,2]
[359557920,1746123804545,-279.4705777,0.00019947,2]
[359557921,1746123844661,-328.72062478,0.00019947,2]
[359557922,1746123852611,-157.02175172,0.00019939,2]
[359557923,1746123856570,-51.12964228,0.00019939,2]
[359557924,1746123856592,-111.91504388,0.00019947,2]
[359557925,1746123860778,-180.33606607,0.0001992,2]
[359557926,1746123865559,-233.51131837,0.0001992,2]
[359557927,1746123868197,-150.51153262,0.0001992,2]
[359557928,1746123871520,-206.36682733,0.0001992,2]
[359557930,1746123874187,-189.89753136,0.0001992,2]
[359557931,1746123877577,-163.04468616,0.0001992,2]
[359557932,1746123882224,-370.79775501,0.0001992,2]
[359557933,1746123885459,-373.48500577,0.0001992,2]
[359557934,1746123889142,-151.0,0.000199,2]
[359557935,1746123889164,-17.079485,0.0001992,2]
[359557936,1746123894385,-175.6895645,0.00019847,2]
[359557937,1746123897651,-300.0,0.00019847,2]
[359557938,1746123904796,-161.16470176,0.00019847,2]
[359557939,1746123908587,-250.0,0.00019847,2]
[359557940,1746123911259,-151.856853,0.00019847,2]
[359557941,1746123915849,-227.92621908,0.00018955,2]
[359557942,1746123919769,-529.44408862,0.00018955,2]
[359557943,1746123925034,-166.1018682,0.00018955,2]
[359557945,1746123931371,-124.8545291,0.00018955,2]
[359557946,1746123931396,-175.1454709,0.00019078,2]
[359557948,1746123935919,-23.7578221,0.00019078,2]
[359557949,1746123935945,-140.82801786,0.00019847,2]
[359557952,1746123941296,-269.4918856,0.00019847,2]
[359557953,1746123944255,-174.16373671,0.00019847,2]
[359557954,1746123948451,-108.03296064,0.00019847,2]
[359557955,1746123948477,-51.96703936,0.00019909,3]
[359557956,1746123953372,-172.89296064,0.00019909,3]
[359557957,1746123953394,-96.70179397,0.00019909,3]
[359557959,1746123957981,-161.19478468,0.00019909,3]
[359557961,1746123963841,-252.32384414,0.00019909,3]
[359557962,1746123969865,-164.37957721,0.00019909,3]
[359557963,1746123969888,-281.57328545,0.00019918,2]
[359557964,1746123973593,-18.42671455,0.00019918,2]
[359557965,1746123973615,-231.57328545,0.00019918,2]
[359557966,1746123977301,-68.42671455,0.00019918,2]
[359557967,1746123977327,-253.10854431,0.00019919,2]
[359557968,1746123981026,-246.89145569,0.00019919,2]
[359557969,1746123981061,-13.58007387,0.00019919,2]
[359557970,1746123986152,-152.15346145,0.000189,2]
[359557971,1746123986182,-150.12971203,0.00019919,2]
[359557972,1746123994194,-171.0090298,0.00019918,2]
[359557973,1746123994220,-111.76163564,0.00019918,2]
[359557974,1746123998719,-234.91858924,0.00019918,2]
[359557975,1746124001349,-153.31977512,0.00019918,2]
[359557976,1746124001372,-194.88313599,0.00019918,2]
[359557977,1746124007251,-160.0,0.00019918,2]
[359557978,1746124010492,-145.11686401,0.00019918,2]
[359557979,1746124010515,-198.84581075,0.00019918,2]
[359557980,1746124020460,-57.76484113,0.00019918,2]
[359557981,1746124020483,-93.00276414,0.00019918,2]
[359557982,1746124026966,-181.7504045,0.00019917,2]
[359557984,1746124077043,1549.40432037,0.00016,2]
[359557985,1746124084144,-435.41411158,0.00018955,2]
[359557986,1746124091117,-339.34786087,0.00018955,2]
[359557987,1746124092949,-339.34786087,0.00018955,2]
[359557988,1746124098390,-160.65213813,0.00018955,2]
[359557989,1746124104621,-245.72976436,0.00018955,2]
[359557990,1746124108716,-163.68406202,0.00018955,2]
[359557991,1746124111312,-178.21162738,0.00018955,2]
[359557992,1746124116768,-305.46330531,0.00018955,2]
[359557993,1746124119714,313.99443925,0.0002,20]
[359557994,1746124124496,-183.39596482,0.00019318,3]
[359557996,1746124126491,2311.24646394,0.00015,2]
[359557997,1746124127756,-320.0,0.00018955,2]
[359557998,1746124135059,-153.58701788,0.00018955,2]
[359557999,1746124135089,-6.41298212,0.00019318,3]
[359558000,1746124143495,-159.9791212,0.00019318,3]
[359558001,1746124172748,-480.51080318,0.00019228,2]
[359558004,1746124178968,-151.0,0.00019228,2]
[359558005,1746124183776,-239.64305386,0.00019228,2]
[359558006,1746124211227,-151.0,0.00018585,2]
[359558029,1746124238035,-643.67039803,0.00019228,2]
[359558030,1746124238046,-352.76810946,0.00019301,2]
[359558031,1746124238055,-300.0,0.00019316,2]
[359558032,1746124238065,-300.0,0.00019316,2]
[359558033,1746124238075,-300.0,0.00019317,2]
[359558034,1746124238085,-1200.0,0.00019317,2]
[359558035,1746124238095,-300.0,0.00019317,2]
[359558036,1746124238106,-240.0,0.00019317,2]
[359558037,1746124238118,-300.0,0.00019317,2]
[359558038,1746124238128,-1381.01193186,0.00019318,3]
[359558039,1746124238137,-865.4,0.00019318,3]
[359558040,1746124238147,-432.7,0.00019318,3]
[359558041,1746124238156,-216.35,0.00019318,3]
[359558042,1746124238166,-649.09,0.00019318,3]
[359558043,1746124238175,-500.0,0.00019327,2]
[359558044,1746124238186,-500.0,0.00019327,2]
[359558045,1746124238195,-500.0,0.00019327,2]
[359558046,1746124238204,-1444.71864059,0.00019327,2]
[359558047,1746124238213,-1444.71864059,0.00019327,2]
[359558048,1746124238223,-500.0,0.00019327,2]
[359558049,1746124238232,-500.0,0.00019327,2]
[359558050,1746124238241,-500.0,0.00019327,2]
[359558051,1746124238250,-500.0,0.00019327,2]
[359558052,1746124238260,-500.0,0.00019327,2]
[359558053,1746124238269,-1444.71864059,0.00019327,2]
[359558054,1746124238279,-500.0,0.00019327,2]
[359558055,1746124238288,-500.0,0.00019327,2]
[359558056,1746124238297,-485.69985417,0.00019327,2]
[359558057,1746124238307,-1444.71864059,0.00019327,2]
[359558058,1746124238316,-329.11086892,0.00019327,2]
[359558059,1746124238325,-1444.71864059,0.00019327,2]
[359558060,1746124238335,-500.0,0.00019327,2]
[359558061,1746124238344,-500.0,0.00019327,2]
[359558062,1746124238354,-1444.71864059,0.00019327,2]
[359558063,1746124238363,-500.0,0.00019327,2]
[359558064,1746124238373,-500.0,0.00019327,2]
[359558065,1746124238382,-1444.71864059,0.00019327,2]
[359558066,1746124238392,-500.0,0.00019327,2]
[359558067,1746124238401,-500.0,0.00019327,2]
[359558068,1746124238411,-1444.71864059,0.00019327,2]
[359558069,1746124238422,-500.0,0.00019327,2]
[359558070,1746124238432,-1444.71864059,0.00019327,2]
[359558071,1746124238441,-500.0,0.00019327,2]
[359558072,1746124238451,-500.0,0.00019327,2]
[359558073,1746124238462,-1444.71864059,0.00019327,2]
[359558074,1746124238472,-500.0,0.00019327,2]
[359558075,1746124238482,-1444.71864059,0.00019327,2]
[359558076,1746124238492,-500.0,0.00019327,2]
[359558077,1746124238501,-500.0,0.00019327,2]
[359558078,1746124238511,-1444.71864059,0.00019327,2]
[359558079,1746124238521,-500.0,0.00019327,2]
[359558080,1746124238531,-1444.71864059,0.00019327,2]
[359558081,1746124238540,-248.57207549,0.00019327,2]
[359558082,1746124238550,-500.0,0.00019327,2]
[359558083,1746124238560,-1444.71864059,0.00019327,2]
[359558084,1746124238571,-500.0,0.00019327,2]
[359558085,1746124238580,-1444.71864059,0.00019327,2]
[359558086,1746124238590,-500.0,0.00019327,2]
[359558087,1746124238601,-1444.71864059,0.00019327,2]
[359558088,1746124238611,-1444.71864059,0.00019327,2]
[359558089,1746124238621,-500.0,0.00019327,2]
[359558090,1746124238630,-1444.71864059,0.00019327,2]
[359558091,1746124238641,-500.0,0.00019327,2]
[359558092,1746124238650,-1444.71864059,0.00019327,2]
[359558093,1746124238660,-500.0,0.00019327,2]
[359558094,1746124238670,-1444.71864059,0.00019327,2]
[359558095,1746124238680,-1444.71864059,0.00019327,2]
[359558096,1746124238689,-500.0,0.00019327,2]
[359558097,1746124238699,-1444.71864059,0.00019327,2]
[359558098,1746124238709,-1444.71864059,0.00019327,2]
[359558099,1746124238719,-1444.71864059,0.00019327,2]
[359558100,1746124238734,-1444.71864059,0.00019327,2]
[359558101,1746124238743,-1444.71864059,0.00019327,2]
[359558102,1746124238752,-1444.71864059,0.00019327,2]
[359558103,1746124238762,-1444.71864059,0.00019327,2]
[359558104,1746124238771,-1444.71864059,0.00019327,2]
[359558105,1746124238780,-1444.71864059,0.00019327,2]
[359558106,1746124238790,-1444.71864059,0.00019327,2]
[359558107,1746124238803,-1444.71864059,0.00019327,2]
[359558108,1746124238812,-1444.71864059,0.00019327,2]
[359558109,1746124238822,-1444.71864059,0.00019327,2]
[359558110,1746124238831,-1444.71864059,0.00019327,2]
[359558111,1746124238841,-1444.71864059,0.00019327,2]
[359558112,1746124238851,-1444.71864059,0.00019327,2]
[359558113,1746124238862,-1444.71864059,0.00019327,2]
[359558114,1746124238871,-1444.71864059,0.00019327,2]
[359558115,1746124238881,-1444.71864059,0.00019327,2]
[359558116,1746124238890,-1444.71864059,0.00019327,2]
[359558117,1746124238899,-1444.71864059,0.00019327,2]
[359558118,1746124238908,-1444.71864059,0.00019327,2]
[359558119,1746124238918,-1444.71864059,0.00019327,2]
[359558120,1746124238927,-1444.71864059,0.00019327,2]
[359558121,1746124238936,-1444.71864059,0.00019327,2]
[359558122,1746124238946,-1444.71864059,0.00019327,2]
[359558123,1746124238955,-1444.71864059,0.00019327,2]
[359558124,1746124238965,-1444.71864059,0.00019327,2]
[359558125,1746124238974,-1444.71864059,0.00019327,2]
[359558126,1746124238983,-1444.71864059,0.00019327,2]
[359558127,1746124238992,-1444.71864059,0.00019327,2]
[359558128,1746124239001,-1444.71864059,0.00019327,2]
[359558129,1746124239010,-1444.71864059,0.00019327,2]
[359558130,1746124239020,-1444.71864059,0.00019327,2]
[359558131,1746124239029,-1444.71864059,0.00019327,2]
[359558132,1746124239039,-1444.71864059,0.00019327,2]
[359558133,1746124239050,-1444.71864059,0.00019327,2]
[359558134,1746124239059,-1444.71864059,0.00019327,2]
[359558135,1746124239069,-500.0,0.00019327,2]
[359558136,1746124239079,-500.0,0.00019327,2]
[359558137,1746124239088,-547.2024233,0.00019327,2]
[359558138,1746124239098,-500.0,0.00019327,2]
[359558139,1746124239109,-297.83050136,0.00019327,2]
[359558140,1746124239119,-500.0,0.00019327,2]
[359558141,1746124239129,-500.0,0.00019327,2]
[359558142,1746124239139,-500.0,0.00019327,2]
[359558143,1746124239149,-500.0,0.00019327,2]
[359558144,1746124239158,-529.62745632,0.00019327,2]
[359558145,1746124239168,-500.0,0.00019327,2]
[359558146,1746124239178,-500.0,0.00019327,2]
[359558147,1746124239188,-500.0,0.00019328,2]
[359558148,1746124239198,-50000.0,0.00019328,2]
[359558149,1746124239206,-100000.0,0.00019329,2]
[359558150,1746124239216,-408.66284962,0.00019373,2]
[359558151,1746124239225,-500.0,0.00019373,2]
[359558152,1746124239234,-500.42441715,0.00019373,2]
[359558153,1746124239244,-300.0,0.00019373,2]
[359558154,1746124239253,-500.0,0.00019373,2]
[359558155,1746124239262,-500.0,0.00019373,2]
[359558156,1746124239272,-500.0,0.00019373,2]
[359558157,1746124239281,-500.0,0.00019373,2]
[359558158,1746124239291,-500.0,0.00019373,2]
[359558159,1746124239300,-500.0,0.00019373,2]
[359558160,1746124239309,-500.0,0.00019373,2]
[359558161,1746124239319,-152.0,0.00019499,2]
[359558162,1746124239328,-500.0,0.00019602,2]
[359558163,1746124239337,-500.0,0.00019876,2]
[359558164,1746124239347,-163.68406202,0.00019904,2]
[359558165,1746124239356,-3461.6,0.00019908,3]
[359558166,1746124239365,-75390.99467091,0.0001992,2]
[359558167,1746124239374,-194.0,0.00019937,2]
[359558168,1746124239385,-7819.91381064,0.00019947,2]
[359558169,1746124239394,-151.0,0.00019954,2]
[359558170,1746124239404,-6341.353944,0.00019964,2]
[359558171,1746124239415,-173.643399,0.00019964,2]
[359558172,1746124239424,-151.0,0.00019964,2]
[359558173,1746124239434,-173.643399,0.00019964,2]
[359558174,1746124239443,-151.0,0.00019964,2]
[359558175,1746124239453,-151.0,0.00019964,2]
[359558176,1746124239462,-151.0,0.00019964,2]
[359558177,1746124239471,-151.0,0.00019964,2]
[359558178,1746124239481,-185.663178,0.00019964,2]
[359558179,1746124239490,-608.190841,0.00019964,2]
[359558180,1746124239499,-608.190841,0.00019964,2]
[359558181,1746124239510,-240.801933,0.00019964,2]
[359558182,1746124239520,-57636.9148235,0.00019964,2]
[359558183,1746124239529,-321.72428169,0.00019964,2]
[359558184,1746124239539,-500.0,0.00019973,2]
[359558185,1746124239549,-500.0,0.00019973,2]
[359558186,1746124239558,-500.0,0.00019973,2]
[359558187,1746124239567,-501.89805431,0.00019973,2]
[359558188,1746124239576,-500.0,0.00019973,2]
[359558189,1746124239587,-500.0,0.00019973,2]
[359558190,1746124239596,-500.0,0.00019973,2]
[359558191,1746124239606,-500.0,0.00019973,2]
[359558192,1746124239615,-500.0,0.00019973,2]
[359558193,1746124239625,-500.0,0.00019973,2]
[359558194,1746124239638,-613.77481421,0.00019973,2]
[359558195,1746124239647,-500.0,0.00019973,2]
[359558196,1746124239657,-375.49303812,0.00019973,2]
[359558197,1746124239666,-500.0,0.00019973,2]
[359558198,1746124239676,-500.0,0.00019973,2]
[359558199,1746124239685,-500.0,0.00019973,2]
[359558200,1746124239694,-500.29952747,0.00019973,2]
[359558201,1746124239703,-500.0,0.00019973,2]
[359558202,1746124239713,-500.0,0.00019973,2]
[359558203,1746124239722,-500.0,0.00019973,2]
[359558204,1746124239731,-500.0,0.00019973,2]
[359558205,1746124239741,-500.0,0.00019973,2]
[359558206,1746124239751,-611.68997418,0.00019973,2]